[Event "Titled Tuesday Blitz December 20 Early 2022"]
[White "Kucherov, Konstantin"]
[Black "Pastana, Rafael Pedroni"]
[WhiteFideId "34136280"]
[BlackFideId "2140756"]
[WhiteElo "1983"]
[BlackElo "1978"]
[Result "1-0"]
[Round "08"]
[TimeControl "180+2"]
[Date "2022.12.20"]
[WhiteClock "0:00:21"]
[BlackClock "0:00:38"]

1. d4 {[%clk 0:03:00]}  Nf6 {[%clk 0:02:59]} 2. c4 {[%clk 0:03:01]}  e6 {[%clk 0:02:59]} 3. Nc3 {[%clk 0:03:01]}  Bb4 {[%clk 0:02:59]} 4. f3 {[%clk 0:03:01]}  O-O {[%clk 0:02:57]} 5. a3 {[%clk 0:03:00]}  Be7 {[%clk 0:02:56]} 6. e4 {[%clk 0:03:00]}  d5 {[%clk 0:02:55]} 7. e5 {[%clk 0:02:57]}  Nfd7 {[%clk 0:02:45]} 8. c5 {[%clk 0:02:44]}  b6 {[%clk 0:02:44]} 9. b4 {[%clk 0:02:44]}  a5 {[%clk 0:02:44]} 10. Rb1 {[%clk 0:02:43]}  axb4 {[%clk 0:02:43]} 11. axb4 {[%clk 0:02:43]}  bxc5 {[%clk 0:02:43]} 12. bxc5 {[%clk 0:02:42]}  Ba6 {[%clk 0:02:43]} 13. Bxa6 {[%clk 0:02:40]}  Rxa6 {[%clk 0:02:44]} 14. Nge2 {[%clk 0:02:39]}  f6 {[%clk 0:02:44]} 15. exf6 {[%clk 0:02:37]}  Bxf6 {[%clk 0:02:45]} 16. O-O {[%clk 0:02:35]}  Nc6 {[%clk 0:02:43]} 17. f4 {[%clk 0:02:33]}  Ne7 {[%clk 0:02:33]} 18. Qd3 {[%clk 0:02:30]}  Qc8 {[%clk 0:02:26]} 19. Ng3 {[%clk 0:02:27]}  c6 {[%clk 0:02:11]} 20. Re1 {[%clk 0:02:24]}  Re8 {[%clk 0:02:07]} 21. Bd2 {[%clk 0:02:06]}  Ra3 {[%clk 0:02:06]} 22. Ra1 {[%clk 0:02:01]}  Qa8 {[%clk 0:02:02]} 23. Rxa3 {[%clk 0:01:45]}  Qxa3 {[%clk 0:02:03]} 24. Rxe6 {[%clk 0:01:44]}  Rb8 {[%clk 0:01:56]} 25. Re1 {[%clk 0:01:39]}  Rb2 {[%clk 0:01:46]} 26. Nh5 {[%clk 0:01:34]}  Nxc5 {[%clk 0:01:12]} 27. Nxf6+ {[%clk 0:01:31]}  gxf6 {[%clk 0:01:12]} 28. dxc5 {[%clk 0:01:25]}  Qxc5+ {[%clk 0:01:13]} 29. Be3 {[%clk 0:01:22]}  Qc4 {[%clk 0:01:10]} 30. Qxc4 {[%clk 0:01:14]}  dxc4 {[%clk 0:01:11]} 31. Bc1 {[%clk 0:01:05]}  Rc2 {[%clk 0:01:10]} 32. Ne4 {[%clk 0:01:01]}  Nd5 {[%clk 0:01:09]} 33. f5 {[%clk 0:01:01]}  c3 {[%clk 0:01:07]} 34. Bh6 {[%clk 0:00:57]}  Rb2 {[%clk 0:01:02]} 35. Nd6 {[%clk 0:00:56]}  Rb8 {[%clk 0:00:54]} 36. Nc4 {[%clk 0:00:54]}  c2 {[%clk 0:00:54]} 37. Kf2 {[%clk 0:00:49]}  Nb4 {[%clk 0:00:52]} 38. Ke2 {[%clk 0:00:27]}  Re8+ {[%clk 0:00:51]} 39. Ne3 {[%clk 0:00:25]}  Na2 {[%clk 0:00:46]} 40. Kd2 {[%clk 0:00:20]}  c1=Q+ {[%clk 0:00:44]} 41. Rxc1 {[%clk 0:00:21]}  Nxc1 {[%clk 0:00:45]} 42. Kxc1 {[%clk 0:00:21]}  Rd8 {[%clk 0:00:41]} 43. Kc2 {[%clk 0:00:21]}  Kf7 {[%clk 0:00:41]} 44. Bf4 {[%clk 0:00:21]}  Rd4 {[%clk 0:00:40]} 45. g3 {[%clk 0:00:20]}  h5 {[%clk 0:00:38]} 46. Kc3 {[%clk 0:00:20]}  Re4 {[%clk 0:00:38]} 47. Kd3 {[%clk 0:00:20]}  Ra4 {[%clk 0:00:38]} 48. Nc4 {[%clk 0:00:21]} 1-0


[Site "https://www.chess.com"]

[Event "Titled Tuesday Blitz December 20 Early 2022"]
[White "Lasinika, M M D"]
[Black "Calzadilla De la Cruz, Maray"]
[WhiteFideId "9974555"]
[BlackFideId "3509770"]
[WhiteElo "1072"]
[BlackElo "1994"]
[Result "1-0"]
[Round "08"]
[TimeControl "180+2"]
[Date "2022.12.20"]
[WhiteClock "0:00:19"]
[BlackClock "0:00:51"]

1. e4 {[%clk 0:03:00]}  c6 {[%clk 0:02:59]} 2. d4 {[%clk 0:02:39]}  d5 {[%clk 0:03:00]} 3. exd5 {[%clk 0:02:39]}  cxd5 {[%clk 0:03:01]} 4. Nf3 {[%clk 0:02:40]}  Nf6 {[%clk 0:03:00]} 5. c3 {[%clk 0:02:39]}  Nc6 {[%clk 0:03:00]} 6. Be2 {[%clk 0:02:39]}  Bf5 {[%clk 0:02:59]} 7. O-O {[%clk 0:02:39]}  e6 {[%clk 0:02:59]} 8. Re1 {[%clk 0:02:39]}  Bd6 {[%clk 0:02:58]} 9. Bg5 {[%clk 0:02:39]}  O-O {[%clk 0:02:58]} 10. Nbd2 {[%clk 0:02:39]}  h6 {[%clk 0:02:58]} 11. Bh4 {[%clk 0:02:39]}  Be7 {[%clk 0:02:59]} 12. Bxf6 {[%clk 0:02:36]}  Bxf6 {[%clk 0:02:59]} 13. Nf1 {[%clk 0:02:36]}  Rb8 {[%clk 0:02:59]} 14. Ng3 {[%clk 0:02:36]}  Bg6 {[%clk 0:02:57]} 15. Bd3 {[%clk 0:02:35]}  Bxd3 {[%clk 0:02:57]} 16. Qxd3 {[%clk 0:02:36]}  b5 {[%clk 0:02:58]} 17. a3 {[%clk 0:02:35]}  a5 {[%clk 0:02:58]} 18. Nh5 {[%clk 0:02:34]}  Qe7 {[%clk 0:02:46]} 19. Re3 {[%clk 0:02:29]}  b4 {[%clk 0:02:43]} 20. Nf4 {[%clk 0:02:25]}  Qd6 {[%clk 0:02:37]} 21. Nh5 {[%clk 0:02:23]}  Qe7 {[%clk 0:02:36]} 22. axb4 {[%clk 0:02:22]}  axb4 {[%clk 0:02:36]} 23. h3 {[%clk 0:02:11]}  Ra8 {[%clk 0:02:27]} 24. Rae1 {[%clk 0:02:09]}  bxc3 {[%clk 0:02:25]} 25. bxc3 {[%clk 0:02:05]}  Rfb8 {[%clk 0:02:25]} 26. Nf4 {[%clk 0:02:02]}  Qd6 {[%clk 0:02:24]} 27. Ne5 {[%clk 0:02:02]}  Ne7 {[%clk 0:02:14]} 28. Nh5 {[%clk 0:02:01]}  Nf5 {[%clk 0:02:05]} 29. Rf3 {[%clk 0:01:57]}  Bxe5 {[%clk 0:02:02]} 30. dxe5 {[%clk 0:01:56]}  Qa6 {[%clk 0:02:02]} 31. Qd2 {[%clk 0:01:44]}  Qc4 {[%clk 0:01:56]} 32. Rf4 {[%clk 0:01:42]}  Qa2 {[%clk 0:01:55]} 33. Qd1 {[%clk 0:01:40]}  Qb2 {[%clk 0:01:40]} 34. Qg4 {[%clk 0:01:24]}  g6 {[%clk 0:01:36]} 35. Nf6+ {[%clk 0:01:18]}  Kg7 {[%clk 0:01:36]} 36. Nxd5 {[%clk 0:01:10]}  Ra1 {[%clk 0:01:32]} 37. Rxa1 {[%clk 0:01:02]}  Qxa1+ {[%clk 0:01:33]} 38. Kh2 {[%clk 0:01:02]}  Rb1 {[%clk 0:01:34]} 39. Rxf5 {[%clk 0:00:56]}  exf5 {[%clk 0:01:34]} 40. Qd4 {[%clk 0:00:56]}  Rh1+ {[%clk 0:01:31]} 41. Kg3 {[%clk 0:00:54]}  Rd1 {[%clk 0:01:30]} 42. Qc5 {[%clk 0:00:45]}  Qc1 {[%clk 0:01:22]} 43. e6 {[%clk 0:00:39]}  Qg5+ {[%clk 0:01:07]} 44. Kh2 {[%clk 0:00:37]}  f4 {[%clk 0:01:05]} 45. exf7 {[%clk 0:00:33]}  Kxf7 {[%clk 0:01:01]} 46. Qc7+ {[%clk 0:00:31]}  Ke6 {[%clk 0:01:00]} 47. Nxf4+ {[%clk 0:00:31]}  Kf5 {[%clk 0:00:57]} 48. g3 {[%clk 0:00:27]}  Qd8 {[%clk 0:00:55]} 49. Qf7+ {[%clk 0:00:26]}  Ke4 {[%clk 0:00:54]} 50. Qxg6+ {[%clk 0:00:24]}  Kf3 {[%clk 0:00:54]} 51. Qg4+ {[%clk 0:00:21]}  Ke4 {[%clk 0:00:51]} 52. Nd5+ {[%clk 0:00:19]} 1-0


[Site "https://www.chess.com"]

[Event "Titled Tuesday Blitz December 20 Early 2022"]
[White "Lim, Seng Hoo"]
[Black "JoliyRoger"]
[WhiteFideId "5800021"]
[WhiteElo "2440"]
[BlackElo "2429"]
[Result "1-0"]
[Round "08"]
[TimeControl "180+2"]
[Date "2022.12.20"]
[WhiteClock "0:00:31"]
[BlackClock "0:00:02"]

1. d4 {[%clk 0:02:59]}  Nf6 {[%clk 0:02:53]} 2. c4 {[%clk 0:02:59]}  e6 {[%clk 0:02:54]} 3. Nc3 {[%clk 0:02:54]}  Bb4 {[%clk 0:02:54]} 4. e3 {[%clk 0:02:54]}  c5 {[%clk 0:02:54]} 5. dxc5 {[%clk 0:02:49]}  Na6 {[%clk 0:02:51]} 6. Nf3 {[%clk 0:02:46]}  Nxc5 {[%clk 0:02:47]} 7. Qc2 {[%clk 0:02:40]}  b6 {[%clk 0:02:41]} 8. Be2 {[%clk 0:02:39]}  Bb7 {[%clk 0:02:41]} 9. O-O {[%clk 0:02:35]}  Bxc3 {[%clk 0:02:42]} 10. Qxc3 {[%clk 0:02:33]}  O-O {[%clk 0:02:42]} 11. b3 {[%clk 0:02:30]}  Rc8 {[%clk 0:02:35]} 12. Bb2 {[%clk 0:02:26]}  d5 {[%clk 0:02:35]} 13. Rfd1 {[%clk 0:02:23]}  Qe7 {[%clk 0:02:35]} 14. cxd5 {[%clk 0:02:12]}  Bxd5 {[%clk 0:02:35]} 15. Qe5 {[%clk 0:02:03]}  Qb7 {[%clk 0:02:13]} 16. Rac1 {[%clk 0:01:52]}  Nce4 {[%clk 0:02:01]} 17. Nd4 {[%clk 0:01:15]}  h6 {[%clk 0:01:40]} 18. f3 {[%clk 0:01:14]}  Nc5 {[%clk 0:01:25]} 19. e4 {[%clk 0:01:11]}  Bc6 {[%clk 0:01:14]} 20. Nxc6 {[%clk 0:00:59]}  Rxc6 {[%clk 0:01:14]} 21. Qg3 {[%clk 0:00:55]}  Nh5 {[%clk 0:00:16]} 22. Qh4 {[%clk 0:00:52]}  g6 {[%clk 0:00:15]} 23. g4 {[%clk 0:00:48]}  Nf4 {[%clk 0:00:07]} 24. Bf1 {[%clk 0:00:46]}  Ncd3 {[%clk 0:00:02]} 25. Bxd3 {[%clk 0:00:34]}  Rxc1 {[%clk 0:00:01]} 26. Bxc1 {[%clk 0:00:33]}  Nxd3 {[%clk 0:00:01]} 27. Rxd3 {[%clk 0:00:33]}  Qc7 {[%clk 0:00:02]} 28. Bxh6 {[%clk 0:00:31]} 1-0


[Site "https://www.chess.com"]

[Event "Titled Tuesday Blitz December 20 Early 2022"]
[White "Manish Anto Cristiano F"]
[Black "Mohammed, Dilshad"]
[WhiteFideId "25095927"]
[BlackFideId "5050421"]
[WhiteElo "2485"]
[BlackElo "2103"]
[Result "0-1"]
[Round "08"]
[TimeControl "180+2"]
[Date "2022.12.20"]
[WhiteClock "0:02:14"]
[BlackClock "0:02:47"]

1. d4 {[%clk 0:03:00]}  d5 {[%clk 0:02:58]} 2. c4 {[%clk 0:02:55]}  e6 {[%clk 0:02:59]} 3. Nf3 {[%clk 0:02:43]}  c5 {[%clk 0:02:58]} 4. cxd5 {[%clk 0:02:40]}  exd5 {[%clk 0:02:59]} 5. Nc3 {[%clk 0:02:40]}  Nc6 {[%clk 0:02:57]} 6. g3 {[%clk 0:02:28]}  Bg4 {[%clk 0:02:53]} 7. Bg2 {[%clk 0:02:26]}  Nf6 {[%clk 0:02:52]} 8. Be3 {[%clk 0:02:24]}  Bxf3 {[%clk 0:02:51]} 9. Bxf3 {[%clk 0:02:24]}  cxd4 {[%clk 0:02:50]} 10. Bxd4 {[%clk 0:02:24]}  Bb4 {[%clk 0:02:47]} 11. O-O {[%clk 0:02:22]}  Bxc3 {[%clk 0:02:47]} 12. bxc3 {[%clk 0:02:22]}  O-O {[%clk 0:02:47]} 13. Rb1 {[%clk 0:02:21]}  b6 {[%clk 0:02:47]} 14. Qa4 {[%clk 0:02:20]}  Nxd4 {[%clk 0:02:46]} 15. Qxd4 {[%clk 0:02:19]}  Rc8 {[%clk 0:02:46]} 16. Rfd1 {[%clk 0:02:18]}  Qe7 {[%clk 0:02:46]} 17. Bxd5 {[%clk 0:02:14]}  Nxd5 {[%clk 0:02:47]} 18. Qc5 {[%clk 0:02:14]}  Rxc5 {[%clk 0:02:47]} 0-1


[Site "https://www.chess.com"]

[Event "Titled Tuesday Blitz December 20 Early 2022"]
[White "MartinMatthiesen"]
[Black "EdgePlosion"]
[WhiteElo "2497"]
[BlackElo "2420"]
[Result "1/2-1/2"]
[Round "08"]
[TimeControl "180+2"]
[Date "2022.12.20"]
[WhiteClock "0:00:15"]
[BlackClock "0:00:08"]

1. d4 {[%clk 0:03:00]}  Nf6 {[%clk 0:02:59]} 2. c4 {[%clk 0:02:59]}  g6 {[%clk 0:03:00]} 3. Nc3 {[%clk 0:02:59]}  Bg7 {[%clk 0:03:00]} 4. e4 {[%clk 0:02:59]}  d6 {[%clk 0:03:01]} 5. Nf3 {[%clk 0:02:59]}  O-O {[%clk 0:03:01]} 6. Be2 {[%clk 0:03:00]}  e5 {[%clk 0:03:01]} 7. d5 {[%clk 0:03:00]}  a5 {[%clk 0:02:48]} 8. Bg5 {[%clk 0:02:59]}  h6 {[%clk 0:02:43]} 9. Bh4 {[%clk 0:02:59]}  Na6 {[%clk 0:02:43]} 10. O-O {[%clk 0:02:57]}  Bd7 {[%clk 0:02:35]} 11. Nd2 {[%clk 0:02:55]}  Qe8 {[%clk 0:02:35]} 12. b3 {[%clk 0:02:51]}  Nxe4 {[%clk 0:02:22]} 13. Ncxe4 {[%clk 0:02:36]}  f5 {[%clk 0:02:22]} 14. Bd3 {[%clk 0:02:21]}  fxe4 {[%clk 0:02:17]} 15. Nxe4 {[%clk 0:02:20]}  Bf5 {[%clk 0:02:17]} 16. f3 {[%clk 0:02:17]}  Nc5 {[%clk 0:02:01]} 17. Nxc5 {[%clk 0:02:10]}  dxc5 {[%clk 0:02:02]} 18. Be4 {[%clk 0:02:08]}  Bxe4 {[%clk 0:01:30]} 19. fxe4 {[%clk 0:02:09]}  Rf4 {[%clk 0:01:31]} 20. Qe1 {[%clk 0:02:08]}  Qf7 {[%clk 0:01:25]} 21. Bf2 {[%clk 0:02:00]}  b6 {[%clk 0:01:21]} 22. Be3 {[%clk 0:01:57]}  Rxf1+ {[%clk 0:01:01]} 23. Qxf1 {[%clk 0:01:56]}  Qxf1+ {[%clk 0:01:01]} 24. Rxf1 {[%clk 0:01:56]}  a4 {[%clk 0:01:02]} 25. Rf2 {[%clk 0:01:34]}  axb3 {[%clk 0:00:58]} 26. axb3 {[%clk 0:01:35]}  Ra3 {[%clk 0:00:47]} 27. Rb2 {[%clk 0:01:34]}  Kf7 {[%clk 0:00:43]} 28. Kf2 {[%clk 0:01:34]}  Ke7 {[%clk 0:00:42]} 29. Ke2 {[%clk 0:01:34]}  Ra1 {[%clk 0:00:41]} 30. b4 {[%clk 0:01:26]}  cxb4 {[%clk 0:00:40]} 31. c5 {[%clk 0:01:24]}  bxc5 {[%clk 0:00:38]} 32. Bxc5+ {[%clk 0:01:23]}  Kd7 {[%clk 0:00:38]} 33. Bxb4 {[%clk 0:01:22]}  Bf6 {[%clk 0:00:36]} 34. Bd2 {[%clk 0:01:19]}  Ra4 {[%clk 0:00:32]} 35. Kf3 {[%clk 0:01:18]}  Ra3+ {[%clk 0:00:31]} 36. Ke2 {[%clk 0:01:17]}  Ra4 {[%clk 0:00:31]} 37. Rb4 {[%clk 0:01:07]}  Ra2 {[%clk 0:00:29]} 38. Kd3 {[%clk 0:01:05]}  Bh4 {[%clk 0:00:26]} 39. g3 {[%clk 0:01:02]}  Be7 {[%clk 0:00:25]} 40. Rb8 {[%clk 0:00:58]}  Bc5 {[%clk 0:00:20]} 41. Rg8 {[%clk 0:00:53]}  g5 {[%clk 0:00:21]} 42. Rg6 {[%clk 0:00:51]}  Ra3+ {[%clk 0:00:21]} 43. Kc4 {[%clk 0:00:49]}  Bd4 {[%clk 0:00:12]} 44. Rxh6 {[%clk 0:00:47]}  Ra2 {[%clk 0:00:13]} 45. Bb4 {[%clk 0:00:46]}  Rc2+ {[%clk 0:00:12]} 46. Kb5 {[%clk 0:00:44]}  Rb2 {[%clk 0:00:12]} 47. Rh7+ {[%clk 0:00:44]}  Kc8 {[%clk 0:00:12]} 48. Kc4 {[%clk 0:00:44]}  Rc2+ {[%clk 0:00:12]} 49. Kb3 {[%clk 0:00:44]}  Rb2+ {[%clk 0:00:12]} 50. Ka3 {[%clk 0:00:44]}  Re2 {[%clk 0:00:12]} 51. Rg7 {[%clk 0:00:43]}  Rxe4 {[%clk 0:00:12]} 52. Rxg5 {[%clk 0:00:42]}  Re2 {[%clk 0:00:12]} 53. h4 {[%clk 0:00:40]}  e4 {[%clk 0:00:12]} 54. h5 {[%clk 0:00:39]}  e3 {[%clk 0:00:13]} 55. Rg8+ {[%clk 0:00:36]}  Kb7 {[%clk 0:00:13]} 56. Re8 {[%clk 0:00:36]}  Rh2 {[%clk 0:00:12]} 57. g4 {[%clk 0:00:35]}  Rh4 {[%clk 0:00:10]} 58. Re4 {[%clk 0:00:35]}  Bb6 {[%clk 0:00:10]} 59. d6 {[%clk 0:00:33]}  cxd6 {[%clk 0:00:08]} 60. Bxd6 {[%clk 0:00:34]}  Rh3 {[%clk 0:00:08]} 61. Kb4 {[%clk 0:00:31]}  Kc6 {[%clk 0:00:09]} 62. Be5 {[%clk 0:00:25]}  Rh2 {[%clk 0:00:08]} 63. Bd4 {[%clk 0:00:24]}  Bxd4 {[%clk 0:00:07]} 64. Rxd4 {[%clk 0:00:24]}  e2 {[%clk 0:00:08]} 65. Re4 {[%clk 0:00:24]}  Kd5 {[%clk 0:00:09]} 66. Re8 {[%clk 0:00:20]}  Rg2 {[%clk 0:00:08]} 67. h6 {[%clk 0:00:19]}  Rxg4+ {[%clk 0:00:08]} 68. Kc3 {[%clk 0:00:19]}  Rh4 {[%clk 0:00:08]} 69. Rd8+ {[%clk 0:00:17]}  Ke6 {[%clk 0:00:07]} 70. Re8+ {[%clk 0:00:14]}  Kf7 {[%clk 0:00:06]} 71. Rxe2 {[%clk 0:00:15]}  Rxh6 {[%clk 0:00:07]} 72. Kd4 {[%clk 0:00:14]}  Rd6+ {[%clk 0:00:07]} 73. Ke3 {[%clk 0:00:14]}  Re6+ {[%clk 0:00:07]} 74. Kf2 {[%clk 0:00:14]}  Rxe2+ {[%clk 0:00:08]} 75. Kxe2 {[%clk 0:00:15]} 1/2-1/2


[Site "https://www.chess.com"]

[Event "Titled Tuesday Blitz December 20 Early 2022"]
[White "MathiasWomacka"]
[Black "Hanfin, Zahra Chumaira Amelia"]
[BlackFideId "7111983"]
[WhiteElo "2562"]
[BlackElo "2062"]
[Result "1-0"]
[Round "08"]
[TimeControl "180+2"]
[Date "2022.12.20"]
[WhiteClock "0:01:58"]
[BlackClock "0:01:43"]

1. e4 {[%clk 0:02:59]}  c5 {[%clk 0:02:59]} 2. Nf3 {[%clk 0:02:51]}  d6 {[%clk 0:02:59]} 3. d4 {[%clk 0:02:50]}  cxd4 {[%clk 0:03:00]} 4. Nxd4 {[%clk 0:02:49]}  Nf6 {[%clk 0:03:00]} 5. Nc3 {[%clk 0:02:49]}  Nc6 {[%clk 0:03:00]} 6. Be2 {[%clk 0:02:48]}  e5 {[%clk 0:03:00]} 7. Nf3 {[%clk 0:02:48]}  h6 {[%clk 0:02:58]} 8. O-O {[%clk 0:02:48]}  Be7 {[%clk 0:02:57]} 9. Re1 {[%clk 0:02:48]}  O-O {[%clk 0:02:57]} 10. h3 {[%clk 0:02:49]}  Be6 {[%clk 0:02:57]} 11. Bf1 {[%clk 0:02:49]}  a6 {[%clk 0:02:51]} 12. Nd5 {[%clk 0:02:48]}  Bxd5 {[%clk 0:02:49]} 13. exd5 {[%clk 0:02:49]}  Nb8 {[%clk 0:02:49]} 14. c4 {[%clk 0:02:48]}  Nbd7 {[%clk 0:02:49]} 15. Be3 {[%clk 0:02:42]}  Rc8 {[%clk 0:02:44]} 16. b4 {[%clk 0:02:41]}  Re8 {[%clk 0:02:29]} 17. Nd2 {[%clk 0:02:29]}  b5 {[%clk 0:02:21]} 18. a4 {[%clk 0:02:07]}  bxc4 {[%clk 0:02:15]} 19. Nxc4 {[%clk 0:02:08]}  Rb8 {[%clk 0:02:05]} 20. Na5 {[%clk 0:02:04]}  Qc7 {[%clk 0:01:52]} 21. Rc1 {[%clk 0:01:58]}  Qd8 {[%clk 0:01:43]} 22. Nc6 {[%clk 0:01:58]} 1-0


[Site "https://www.chess.com"]

[Event "Titled Tuesday Blitz December 20 Early 2022"]
[White "McCarthyStone"]
[Black "Borges Matos, Juan"]
[BlackFideId "3500160"]
[WhiteElo "2471"]
[BlackElo "2409"]
[Result "1-0"]
[Round "08"]
[TimeControl "180+2"]
[Date "2022.12.20"]
[WhiteClock "0:02:02"]
[BlackClock "0:00:14"]

1. e4 {[%clk 0:02:59]}  e6 {[%clk 0:03:00]} 2. b3 {[%clk 0:02:58]}  d5 {[%clk 0:03:00]} 3. Bb2 {[%clk 0:02:59]}  dxe4 {[%clk 0:02:55]} 4. Nc3 {[%clk 0:03:00]}  Nf6 {[%clk 0:02:54]} 5. g4 {[%clk 0:03:00]}  h6 {[%clk 0:02:43]} 6. Bg2 {[%clk 0:02:59]}  Bc5 {[%clk 0:02:29]} 7. Qe2 {[%clk 0:02:58]}  Nc6 {[%clk 0:02:13]} 8. Nxe4 {[%clk 0:02:42]}  Nxe4 {[%clk 0:02:10]} 9. Qxe4 {[%clk 0:02:41]}  Bd4 {[%clk 0:01:55]} 10. c3 {[%clk 0:02:36]}  Bf6 {[%clk 0:01:53]} 11. Nf3 {[%clk 0:02:36]}  Qd5 {[%clk 0:01:48]} 12. Qe2 {[%clk 0:02:19]}  Bd7 {[%clk 0:01:41]} 13. O-O-O {[%clk 0:02:18]}  O-O-O {[%clk 0:01:36]} 14. h3 {[%clk 0:02:17]}  Qa5 {[%clk 0:01:32]} 15. d4 {[%clk 0:02:16]}  Qxa2 {[%clk 0:01:24]} 16. Kc2 {[%clk 0:02:15]}  Qa5 {[%clk 0:01:12]} 17. Ra1 {[%clk 0:02:15]}  Qb6 {[%clk 0:01:11]} 18. Nd2 {[%clk 0:02:15]}  Na5 {[%clk 0:00:43]} 19. Rxa5 {[%clk 0:02:15]}  Qxa5 {[%clk 0:00:43]} 20. Ra1 {[%clk 0:02:16]}  Qb5 {[%clk 0:00:35]} 21. Nc4 {[%clk 0:02:13]}  a6 {[%clk 0:00:30]} 22. Ra5 {[%clk 0:02:13]}  Bc6 {[%clk 0:00:19]} 23. Rxb5 {[%clk 0:02:11]}  Bxb5 {[%clk 0:00:20]} 24. Qe3 {[%clk 0:02:07]}  Rd7 {[%clk 0:00:19]} 25. Na5 {[%clk 0:02:07]}  b6 {[%clk 0:00:16]} 26. Nc6 {[%clk 0:02:03]}  Re8 {[%clk 0:00:14]} 27. c4 {[%clk 0:02:02]} 1-0


[Site "https://www.chess.com"]

[Event "Titled Tuesday Blitz December 20 Early 2022"]
[White "Meri-Arabidze"]
[Black "Bilandani, Vansh"]
[BlackFideId "8511292"]
[WhiteElo "2730"]
[BlackElo "2488"]
[Result "0-1"]
[Round "08"]
[TimeControl "180+2"]
[Date "2022.12.20"]
[WhiteClock "0:00:07"]
[BlackClock "0:00:11"]

1. Nf3 {[%clk 0:03:00]}  d5 {[%clk 0:02:57]} 2. c4 {[%clk 0:03:01]}  c6 {[%clk 0:02:57]} 3. g3 {[%clk 0:03:00]}  Nf6 {[%clk 0:02:56]} 4. Bg2 {[%clk 0:03:01]}  Bf5 {[%clk 0:02:54]} 5. O-O {[%clk 0:03:01]}  e6 {[%clk 0:02:54]} 6. Nc3 {[%clk 0:03:01]}  h6 {[%clk 0:02:54]} 7. b3 {[%clk 0:03:01]}  Nbd7 {[%clk 0:02:53]} 8. e3 {[%clk 0:03:00]}  Bd3 {[%clk 0:02:42]} 9. Re1 {[%clk 0:03:00]}  dxc4 {[%clk 0:02:42]} 10. bxc4 {[%clk 0:02:50]}  Bxc4 {[%clk 0:02:38]} 11. d4 {[%clk 0:02:50]}  Bb4 {[%clk 0:02:29]} 12. Bd2 {[%clk 0:02:47]}  Qa5 {[%clk 0:02:26]} 13. Rc1 {[%clk 0:02:43]}  O-O {[%clk 0:02:08]} 14. Qc2 {[%clk 0:02:43]}  Nd5 {[%clk 0:02:04]} 15. Ne4 {[%clk 0:02:29]}  b5 {[%clk 0:01:47]} 16. Nd6 {[%clk 0:02:22]}  N7b6 {[%clk 0:01:28]} 17. a3 {[%clk 0:01:50]}  Bxd2 {[%clk 0:01:24]} 18. Nxd2 {[%clk 0:01:51]}  Qxa3 {[%clk 0:01:11]} 19. N6xc4 {[%clk 0:01:51]}  Nxc4 {[%clk 0:01:01]} 20. Nxc4 {[%clk 0:01:52]}  bxc4 {[%clk 0:01:01]} 21. Qxc4 {[%clk 0:01:52]}  Rfc8 {[%clk 0:00:59]} 22. Ra1 {[%clk 0:01:48]}  Qd6 {[%clk 0:00:50]} 23. e4 {[%clk 0:01:44]}  Nb6 {[%clk 0:00:48]} 24. Qc5 {[%clk 0:01:24]}  Rd8 {[%clk 0:00:47]} 25. Red1 {[%clk 0:01:07]}  Qxc5 {[%clk 0:00:43]} 26. dxc5 {[%clk 0:01:08]}  Nc4 {[%clk 0:00:42]} 27. Rdc1 {[%clk 0:00:39]}  Ne5 {[%clk 0:00:35]} 28. f4 {[%clk 0:00:39]}  Nd3 {[%clk 0:00:33]} 29. Rc3 {[%clk 0:00:36]}  a5 {[%clk 0:00:29]} 30. e5 {[%clk 0:00:36]}  Nb4 {[%clk 0:00:28]} 31. h4 {[%clk 0:00:29]}  h5 {[%clk 0:00:21]} 32. Ra4 {[%clk 0:00:26]}  Rd1+ {[%clk 0:00:17]} 33. Kh2 {[%clk 0:00:26]}  Rd2 {[%clk 0:00:17]} 34. Kh3 {[%clk 0:00:26]}  Ra2 {[%clk 0:00:14]} 35. Rxa2 {[%clk 0:00:23]}  Nxa2 {[%clk 0:00:15]} 36. Bxc6 {[%clk 0:00:15]}  Nxc3 {[%clk 0:00:15]} 37. Bxa8 {[%clk 0:00:15]}  Kf8 {[%clk 0:00:15]} 38. Bc6 {[%clk 0:00:13]}  Ke7 {[%clk 0:00:14]} 39. g4 {[%clk 0:00:10]}  hxg4+ {[%clk 0:00:12]} 40. Kxg4 {[%clk 0:00:11]}  a4 {[%clk 0:00:13]} 41. Bxa4 {[%clk 0:00:08]}  Nxa4 {[%clk 0:00:14]} 42. c6 {[%clk 0:00:08]}  Nb6 {[%clk 0:00:14]} 43. f5 {[%clk 0:00:09]}  exf5+ {[%clk 0:00:12]} 44. Kxf5 {[%clk 0:00:09]}  Nd5 {[%clk 0:00:11]} 45. h5 {[%clk 0:00:09]}  Nc7 {[%clk 0:00:11]} 46. Kg5 {[%clk 0:00:09]}  Ne6+ {[%clk 0:00:11]} 47. Kf5 {[%clk 0:00:09]}  Nd4+ {[%clk 0:00:12]} 48. Kg5 {[%clk 0:00:09]}  Nxc6 {[%clk 0:00:12]} 49. Kf5 {[%clk 0:00:08]}  Nd4+ {[%clk 0:00:11]} 50. Kg5 {[%clk 0:00:08]}  Ke6 {[%clk 0:00:11]} 51. Kf4 {[%clk 0:00:07]}  Nc6 {[%clk 0:00:11]} 0-1


[Site "https://www.chess.com"]